Workbook

Sheet Analysis
A1: TheMortgageGeek.com
A3: 1 Family : Multi Family Cash Flow / Equity Comparison
C6: 2 - 4 Family Home | E6: 1 Family Home
G7: Notes:
B8: Purchase | C8: $1,250,000 | E8: $650,000
B9: Loan | C9: =C8-C11 -> $1,125,000 | E9: =E8-E11 -> $520,000 | G9: • | H9: The time value of money is not considered
B10: Down Pmt % | C10: 10% | E10: 20% | G10: • | H10: Tax Implications are not considered
B11: Down Pmt | C11: =C8*C10 -> $125,000 | E11: =E8*E10 -> $130,000 | G11: • | H11: The difference in closing costs is not considered
B13: Interest Rate | C13: 4.50% | E13: 4.25% | G13: There are many variables and assumptions. This calculator is not designed to give an exact answer (we can't do that). However, we do feel that it does give you a compelling analysis with relevant data to help you make an informed decision.
B14: Mortgage Payment | C14: =-PMT(C13/12,360,C9) -> $5,700 | E14: =-PMT(E13/12,360,E9) -> $2,558
B15: RE Tax | C15: $200 | E15: $110
B16: Insurance | C16: $125 | E16: $100
B17: Total Payment | C17: =C14+C15+C16 -> $6,025 | E17: =E14+E15+E16 -> $2,768
B19: Rent | C19: $2,450
B21: Net Payment | C21: =C17-C19 -> $3,575 | E21: =E17 -> $2,768
B22: Difference | C22: =C21-E21 -> $807
K25: Difference in
B26: Value after Year x | E26: Loan Balance After Year x | H26: Additional Home Equity after Year x* | K26: Additional Home Equity
A27: Year | B27: =C6 -> 2 - 4 Family Home | C27: =E6 -> 1 Family Home | E27: =B27 -> 2 - 4 Family Home | F27: =C27 -> 1 Family Home | H27: =B27 -> 2 - 4 Family Home | I27: =C27 -> 1 Family Home | K27: after Year x
A28: 5 | B28: =VLOOKUP(A28,$A$39:$C$68,2) -> $1,595,352 | C28: =VLOOKUP(A28,$A$39:$C$68,3) -> $829,583 | E28: =VLOOKUP(A28,'2 Family Amortization Schedule'!$A$7:$G$366,7) -> $1,025,527 | F28: =VLOOKUP(A28,'1 Family Amortization Schedule'!$A$7:$G$366,7) -> $472,200 | H28: =(B28-E28)-C$11 -> $444,825 | I28: =(C28-F28)-E$11 -> $227,383 | L28: =H28-I28 -> $217,442
A29: 10 | B29: =VLOOKUP(A29,$A$39:$C$68,2) -> $2,036,118 | C29: =VLOOKUP(A29,$A$39:$C$68,3) -> $1,058,782 | E29: =VLOOKUP(A29,'2 Family Amortization Schedule'!$A$7:$G$366,7) -> $901,006 | F29: =VLOOKUP(A29,'1 Family Amortization Schedule'!$A$7:$G$366,7) -> $413,105 | H29: =(B29-E29)-C$11 -> $1,010,112 | I29: =(C29-F29)-E$11 -> $515,677 | L29: =H29-I29 -> $494,435
A30: 15 | B30: =VLOOKUP(A30,$A$39:$C$68,2) -> $2,598,660 | C30: =VLOOKUP(A30,$A$39:$C$68,3) -> $1,351,303 | E30: =VLOOKUP(A30,'2 Family Amortization Schedule'!$A$7:$G$366,7) -> $745,132 | F30: =VLOOKUP(A30,'1 Family Amortization Schedule'!$A$7:$G$366,7) -> $340,045 | H30: $1,728,528 | I30: $881,258 | L30: =H30-I30 -> $847,270
A31: 20 | B31: =VLOOKUP(A31,$A$39:$C$68,2) -> $3,316,622 | C31: =VLOOKUP(A31,$A$39:$C$68,3) -> $1,724,644 | E31: =VLOOKUP(A31,'2 Family Amortization Schedule'!$A$7:$G$366,7) -> $550,009 | F31: =VLOOKUP(A31,'1 Family Amortization Schedule'!$A$7:$G$366,7) -> $249,722 | H31: $2,641,613 | I31: $1,344,922 | L31: =H31-I31 -> $1,296,691
A32: 30 | B32: =VLOOKUP(A32,$A$39:$C$68,2) -> $5,402,428 | C32: =VLOOKUP(A32,$A$39:$C$68,3) -> $2,809,263 | E32: =VLOOKUP(A32,'2 Family Amortization Schedule'!$A$7:$G$366,7) -> $0 | F32: =VLOOKUP(A32,'1 Family Amortization Schedule'!$A$7:$G$366,7) -> $0 | H32: $5,277,428 | I32: $2,679,263 | L32: =H32-I32 -> $2,598,165
B34: Assumed appreciation | H34: * Additional Home Equity is the Actual Home Equity at a given time minus the Down Payment.
B35: 5% | C35: =B35 -> 5%
B36: Value after Year x
B37: =B27 -> 2 - 4 Family Home | C37: =C27 -> 1 Family Home
A38: 0 | B38: =C8 -> $1,250,000 | C38: =E8 -> $650,000
A39: 1 | B39: =B38*(1+$B$35) -> $1,312,500 | C39: =C38*(1+$C$35) -> $682,500
A40: 2 | B40: $1,378,125 | C40: $716,625
A41: 3 | B41: $1,447,031 | C41: $752,456
A42: 4 | B42: $1,519,383 | C42: $790,079
A43: 5 | B43: $1,595,352 | C43: $829,583
A44: 6 | B44: $1,675,120 | C44: $871,062
A45: 7 | B45: $1,758,876 | C45: $914,615
A46: 8 | B46: $1,846,819 | C46: $960,346
A47: 9 | B47: $1,939,160 | C47: $1,008,363
A48: 10 | B48: $2,036,118 | C48: $1,058,782
A49: 11 | B49: $2,137,924 | C49: $1,111,721
A50: 12 | B50: $2,244,820 | C50: $1,167,307
A51: 13 | B51: $2,357,061 | C51: $1,225,672
A52: 14 | B52: $2,474,914 | C52: $1,286,956
A53: 15 | B53: $2,598,660 | C53: $1,351,303
A54: 16 | B54: $2,728,593 | C54: $1,418,868
A55: 17 | B55: $2,865,023 | C55: $1,489,812
A56: 18 | B56: $3,008,274 | C56: $1,564,303
A57: 19 | B57: $3,158,688 | C57: $1,642,518
A58: 20 | B58: $3,316,622 | C58: $1,724,644
A59: 21 | B59: $3,482,453 | C59: $1,810,876
A60: 22 | B60: $3,656,576 | C60: $1,901,419
A61: 23 | B61: $3,839,405 | C61: $1,996,490
A62: 24 | B62: $4,031,375 | C62: $2,096,315
A63: 25 | B63: $4,232,944 | C63: $2,201,131
A64: 26 | B64: $4,444,591 | C64: $2,311,187
A65: 27 | B65: $4,666,820 | C65: $2,426,747
A66: 28 | B66: $4,900,161 | C66: $2,548,084
A67: 29 | B67: $5,145,169 | C67: $2,675,488
A68: 30 | B68: $5,402,428 | C68: $2,809,263

Sheet 2 Family Amortization Schedule
A1: =Analysis!C6 -> 2 - 4 Family Home
A2: Amortization Schedule
C4: Beginning | G4: Ending
C5: Principal | D5: Monthly | G5: Principal
A6: Year | B6: Month | C6: Balance | D6: Payment | E6: Interest | F6: Principal | G6: Balance
B7: 1 | C7: =Analysis!C9 -> $1,125,000 | D7: =Analysis!$C$14 -> $5,700 | E7: =C7*Analysis!$C$13/12 -> $4,219 | F7: =D7-E7 -> $1,481 | G7: =C7-F7 -> $1,123,519
B8: 2 | C8: =G7 -> $1,123,519 | D8: =Analysis!$C$14 -> $5,700 | E8: =C8*Analysis!$C$13/12 -> $4,213 | F8: $1,487 | G8: $1,122,032
B9: 3 | C9: $1,122,032 | D9: =Analysis!$C$14 -> $5,700 | E9: =C9*Analysis!$C$13/12 -> $4,208 | F9: $1,493 | G9: $1,120,539
B10: 4 | C10: $1,120,539 | D10: =Analysis!$C$14 -> $5,700 | E10: =C10*Analysis!$C$13/12 -> $4,202 | F10: $1,498 | G10: $1,119,041
B11: 5 | C11: $1,119,041 | D11: =Analysis!$C$14 -> $5,700 | E11: =C11*Analysis!$C$13/12 -> $4,196 | F11: $1,504 | G11: $1,117,537
B12: 6 | C12: $1,117,537 | D12: =Analysis!$C$14 -> $5,700 | E12: =C12*Analysis!$C$13/12 -> $4,191 | F12: $1,509 | G12: $1,116,027
B13: 7 | C13: $1,116,027 | D13: =Analysis!$C$14 -> $5,700 | E13: =C13*Analysis!$C$13/12 -> $4,185 | F13: $1,515 | G13: $1,114,512
B14: 8 | C14: $1,114,512 | D14: =Analysis!$C$14 -> $5,700 | E14: =C14*Analysis!$C$13/12 -> $4,179 | F14: $1,521 | G14: $1,112,992
B15: 9 | C15: $1,112,992 | D15: =Analysis!$C$14 -> $5,700 | E15: =C15*Analysis!$C$13/12 -> $4,174 | F15: $1,526 | G15: $1,111,465
B16: 10 | C16: $1,111,465 | D16: =Analysis!$C$14 -> $5,700 | E16: =C16*Analysis!$C$13/12 -> $4,168 | F16: $1,532 | G16: $1,109,933
B17: 11 | C17: $1,109,933 | D17: =Analysis!$C$14 -> $5,700 | E17: =C17*Analysis!$C$13/12 -> $4,162 | F17: $1,538 | G17: $1,108,395
A18: 1 | B18: 12 | C18: $1,108,395 | D18: =Analysis!$C$14 -> $5,700 | E18: =C18*Analysis!$C$13/12 -> $4,156 | F18: $1,544 | G18: $1,106,851
B19: 13 | C19: $1,106,851 | D19: =Analysis!$C$14 -> $5,700 | E19: =C19*Analysis!$C$13/12 -> $4,151 | F19: $1,550 | G19: $1,105,302
B20: 14 | C20: $1,105,302 | D20: =Analysis!$C$14 -> $5,700 | E20: =C20*Analysis!$C$13/12 -> $4,145 | F20: $1,555 | G20: $1,103,746
B21: 15 | C21: $1,103,746 | D21: =Analysis!$C$14 -> $5,700 | E21: =C21*Analysis!$C$13/12 -> $4,139 | F21: $1,561 | G21: $1,102,185
B22: 16 | C22: $1,102,185 | D22: =Analysis!$C$14 -> $5,700 | E22: =C22*Analysis!$C$13/12 -> $4,133 | F22: $1,567 | G22: $1,100,618
B23: 17 | C23: $1,100,618 | D23: =Analysis!$C$14 -> $5,700 | E23: =C23*Analysis!$C$13/12 -> $4,127 | F23: $1,573 | G23: $1,099,045
B24: 18 | C24: $1,099,045 | D24: =Analysis!$C$14 -> $5,700 | E24: =C24*Analysis!$C$13/12 -> $4,121 | F24: $1,579 | G24: $1,097,466
B25: 19 | C25: $1,097,466 | D25: =Analysis!$C$14 -> $5,700 | E25: =C25*Analysis!$C$13/12 -> $4,115 | F25: $1,585 | G25: $1,095,882
B26: 20 | C26: $1,095,882 | D26: =Analysis!$C$14 -> $5,700 | E26: =C26*Analysis!$C$13/12 -> $4,110 | F26: $1,591 | G26: $1,094,291
B27: 21 | C27: $1,094,291 | D27: =Analysis!$C$14 -> $5,700 | E27: =C27*Analysis!$C$13/12 -> $4,104 | F27: $1,597 | G27: $1,092,695
B28: 22 | C28: $1,092,695 | D28: =Analysis!$C$14 -> $5,700 | E28: =C28*Analysis!$C$13/12 -> $4,098 | F28: $1,603 | G28: $1,091,092
B29: 23 | C29: $1,091,092 | D29: =Analysis!$C$14 -> $5,700 | E29: =C29*Analysis!$C$13/12 -> $4,092 | F29: $1,609 | G29: $1,089,483
A30: 2 | B30: 24 | C30: $1,089,483 | D30: =Analysis!$C$14 -> $5,700 | E30: =C30*Analysis!$C$13/12 -> $4,086 | F30: $1,615 | G30: $1,087,869
B31: 25 | C31: $1,087,869 | D31: =Analysis!$C$14 -> $5,700 | E31: =C31*Analysis!$C$13/12 -> $4,080 | F31: $1,621 | G31: $1,086,248
B32: 26 | C32: $1,086,248 | D32: =Analysis!$C$14 -> $5,700 | E32: =C32*Analysis!$C$13/12 -> $4,073 | F32: $1,627 | G32: $1,084,621
B33: 27 | C33: $1,084,621 | D33: =Analysis!$C$14 -> $5,700 | E33: =C33*Analysis!$C$13/12 -> $4,067 | F33: $1,633 | G33: $1,082,988
B34: 28 | C34: $1,082,988 | D34: =Analysis!$C$14 -> $5,700 | E34: =C34*Analysis!$C$13/12 -> $4,061 | F34: $1,639 | G34: $1,081,349
B35: 29 | C35: $1,081,349 | D35: =Analysis!$C$14 -> $5,700 | E35: =C35*Analysis!$C$13/12 -> $4,055 | F35: $1,645 | G35: $1,079,704
B36: 30 | C36: $1,079,704 | D36: =Analysis!$C$14 -> $5,700 | E36: =C36*Analysis!$C$13/12 -> $4,049 | F36: $1,651 | G36: $1,078,053
B37: 31 | C37: $1,078,053 | D37: =Analysis!$C$14 -> $5,700 | E37: =C37*Analysis!$C$13/12 -> $4,043 | F37: $1,658 | G37: $1,076,395
B38: 32 | C38: $1,076,395 | D38: =Analysis!$C$14 -> $5,700 | E38: =C38*Analysis!$C$13/12 -> $4,036 | F38: $1,664 | G38: $1,074,732
B39: 33 | C39: $1,074,732 | D39: =Analysis!$C$14 -> $5,700 | E39: =C39*Analysis!$C$13/12 -> $4,030 | F39: $1,670 | G39: $1,073,062
B40: 34 | C40: $1,073,062 | D40: =Analysis!$C$14 -> $5,700 | E40: =C40*Analysis!$C$13/12 -> $4,024 | F40: $1,676 | G40: $1,071,385
B41: 35 | C41: $1,071,385 | D41: =Analysis!$C$14 -> $5,700 | E41: =C41*Analysis!$C$13/12 -> $4,018 | F41: $1,683 | G41: $1,069,703
A42: 3 | B42: 36 | C42: $1,069,703 | D42: =Analysis!$C$14 -> $5,700 | E42: =C42*Analysis!$C$13/12 -> $4,011 | F42: $1,689 | G42: $1,068,014
B43: 37 | C43: $1,068,014 | D43: =Analysis!$C$14 -> $5,700 | E43: =C43*Analysis!$C$13/12 -> $4,005 | F43: $1,695 | G43: $1,066,319
B44: 38 | C44: $1,066,319 | D44: =Analysis!$C$14 -> $5,700 | E44: =C44*Analysis!$C$13/12 -> $3,999 | F44: $1,702 | G44: $1,064,617
B45: 39 | C45: $1,064,617 | D45: =Analysis!$C$14 -> $5,700 | E45: =C45*Analysis!$C$13/12 -> $3,992 | F45: $1,708 | G45: $1,062,909
B46: 40 | C46: $1,062,909 | D46: =Analysis!$C$14 -> $5,700 | E46: =C46*Analysis!$C$13/12 -> $3,986 | F46: $1,714 | G46: $1,061,195
B47: 41 | C47: $1,061,195 | D47: =Analysis!$C$14 -> $5,700 | E47: =C47*Analysis!$C$13/12 -> $3,979 | F47: $1,721 | G47: $1,059,474
B48: 42 | C48: $1,059,474 | D48: =Analysis!$C$14 -> $5,700 | E48: =C48*Analysis!$C$13/12 -> $3,973 | F48: $1,727 | G48: $1,057,747
B49: 43 | C49: $1,057,747 | D49: =Analysis!$C$14 -> $5,700 | E49: =C49*Analysis!$C$13/12 -> $3,967 | F49: $1,734 | G49: $1,056,014
B50: 44 | C50: $1,056,014 | D50: =Analysis!$C$14 -> $5,700 | E50: =C50*Analysis!$C$13/12 -> $3,960 | F50: $1,740 | G50: $1,054,273
B51: 45 | C51: $1,054,273 | D51: =Analysis!$C$14 -> $5,700 | E51: =C51*Analysis!$C$13/12 -> $3,954 | F51: $1,747 | G51: $1,052,527
B52: 46 | C52: $1,052,527 | D52: =Analysis!$C$14 -> $5,700 | E52: =C52*Analysis!$C$13/12 -> $3,947 | F52: $1,753 | G52: $1,050,774
B53: 47 | C53: $1,050,774 | D53: =Analysis!$C$14 -> $5,700 | E53: =C53*Analysis!$C$13/12 -> $3,940 | F53: $1,760 | G53: $1,049,014
A54: 4 | B54: 48 | C54: $1,049,014 | D54: =Analysis!$C$14 -> $5,700 | E54: =C54*Analysis!$C$13/12 -> $3,934 | F54: $1,766 | G54: $1,047,247
B55: 49 | C55: $1,047,247 | D55: =Analysis!$C$14 -> $5,700 | E55: =C55*Analysis!$C$13/12 -> $3,927 | F55: $1,773 | G55: $1,045,474
B56: 50 | C56: $1,045,474 | D56: =Analysis!$C$14 -> $5,700 | E56: =C56*Analysis!$C$13/12 -> $3,921 | F56: $1,780 | G56: $1,043,695
B57: 51 | C57: $1,043,695 | D57: =Analysis!$C$14 -> $5,700 | E57: =C57*Analysis!$C$13/12 -> $3,914 | F57: $1,786 | G57: $1,041,908
B58: 52 | C58: $1,041,908 | D58: =Analysis!$C$14 -> $5,700 | E58: =C58*Analysis!$C$13/12 -> $3,907 | F58: $1,793 | G58: $1,040,115
B59: 53 | C59: $1,040,115 | D59: =Analysis!$C$14 -> $5,700 | E59: =C59*Analysis!$C$13/12 -> $3,900 | F59: $1,800 | G59: $1,038,315
B60: 54 | C60: $1,038,315 | D60: =Analysis!$C$14 -> $5,700 | E60: =C60*Analysis!$C$13/12 -> $3,894 | F60: $1,807 | G60: $1,036,509
B61: 55 | C61: $1,036,509 | D61: =Analysis!$C$14 -> $5,700 | E61: =C61*Analysis!$C$13/12 -> $3,887 | F61: $1,813 | G61: $1,034,696
B62: 56 | C62: $1,034,696 | D62: =Analysis!$C$14 -> $5,700 | E62: =C62*Analysis!$C$13/12 -> $3,880 | F62: $1,820 | G62: $1,032,875
B63: 57 | C63: $1,032,875 | D63: =Analysis!$C$14 -> $5,700 | E63: =C63*Analysis!$C$13/12 -> $3,873 | F63: $1,827 | G63: $1,031,049
B64: 58 | C64: $1,031,049 | D64: =Analysis!$C$14 -> $5,700 | E64: =C64*Analysis!$C$13/12 -> $3,866 | F64: $1,834 | G64: $1,029,215
B65: 59 | C65: $1,029,215 | D65: =Analysis!$C$14 -> $5,700 | E65: =C65*Analysis!$C$13/12 -> $3,860 | F65: $1,841 | G65: $1,027,374
A66: 5 | B66: 60 | C66: $1,027,374 | D66: =Analysis!$C$14 -> $5,700 | E66: =C66*Analysis!$C$13/12 -> $3,853 | F66: $1,848 | G66: $1,025,527
B67: 61 | C67: $1,025,527 | D67: =Analysis!$C$14 -> $5,700 | E67: =C67*Analysis!$C$13/12 -> $3,846 | F67: $1,854 | G67: $1,023,672
B68: 62 | C68: $1,023,672 | D68: =Analysis!$C$14 -> $5,700 | E68: =C68*Analysis!$C$13/12 -> $3,839 | F68: $1,861 | G68: $1,021,811
B69: 63 | C69: $1,021,811 | D69: =Analysis!$C$14 -> $5,700 | E69: =C69*Analysis!$C$13/12 -> $3,832 | F69: $1,868 | G69: $1,019,942
B70: 64 | C70: $1,019,942 | D70: =Analysis!$C$14 -> $5,700 | E70: =C70*Analysis!$C$13/12 -> $3,825 | F70: $1,875 | G70: $1,018,067
B71: 65 | C71: $1,018,067 | D71: =Analysis!$C$14 -> $5,700 | E71: =C71*Analysis!$C$13/12 -> $3,818 | F71: =D71-E71 -> $1,882 | G71: =C71-F71 -> $1,016,184
B72: 66 | C72: =G71 -> $1,016,184 | D72: =Analysis!$C$14 -> $5,700 | E72: =C72*Analysis!$C$13/12 -> $3,811 | F72: $1,890 | G72: $1,014,295
B73: 67 | C73: $1,014,295 | D73: =Analysis!$C$14 -> $5,700 | E73: =C73*Analysis!$C$13/12 -> $3,804 | F73: $1,897 | G73: $1,012,398
B74: 68 | C74: $1,012,398 | D74: =Analysis!$C$14 -> $5,700 | E74: =C74*Analysis!$C$13/12 -> $3,796 | F74: $1,904 | G74: $1,010,494
B75: 69 | C75: $1,010,494 | D75: =Analysis!$C$14 -> $5,700 | E75: =C75*Analysis!$C$13/12 -> $3,789 | F75: $1,911 | G75: $1,008,584
B76: 70 | C76: $1,008,584 | D76: =Analysis!$C$14 -> $5,700 | E76: =C76*Analysis!$C$13/12 -> $3,782 | F76: $1,918 | G76: $1,006,666
B77: 71 | C77: $1,006,666 | D77: =Analysis!$C$14 -> $5,700 | E77: =C77*Analysis!$C$13/12 -> $3,775 | F77: $1,925 | G77: $1,004,740
A78: 6 | B78: 72 | C78: $1,004,740 | D78: =Analysis!$C$14 -> $5,700 | E78: =C78*Analysis!$C$13/12 -> $3,768 | F78: $1,932 | G78: $1,002,808
B79: 73 | C79: $1,002,808 | D79: =Analysis!$C$14 -> $5,700 | E79: =C79*Analysis!$C$13/12 -> $3,761 | F79: $1,940 | G79: $1,000,868
B80: 74 | C80: $1,000,868 | D80: =Analysis!$C$14 -> $5,700 | E80: =C80*Analysis!$C$13/12 -> $3,753 | F80: $1,947 | G80: $998,921
B81: 75 | C81: $998,921 | D81: =Analysis!$C$14 -> $5,700 | E81: =C81*Analysis!$C$13/12 -> $3,746 | F81: $1,954 | G81: $996,967
B82: 76 | C82: $996,967 | D82: =Analysis!$C$14 -> $5,700 | E82: =C82*Analysis!$C$13/12 -> $3,739 | F82: $1,962 | G82: $995,006
B83: 77 | C83: $995,006 | D83: =Analysis!$C$14 -> $5,700 | E83: =C83*Analysis!$C$13/12 -> $3,731 | F83: $1,969 | G83: $993,037
B84: 78 | C84: $993,037 | D84: =Analysis!$C$14 -> $5,700 | E84: =C84*Analysis!$C$13/12 -> $3,724 | F84: $1,976 | G84: $991,060
B85: 79 | C85: $991,060 | D85: =Analysis!$C$14 -> $5,700 | E85: =C85*Analysis!$C$13/12 -> $3,716 | F85: $1,984 | G85: $989,077
B86: 80 | C86: $989,077 | D86: =Analysis!$C$14 -> $5,700 | E86: =C86*Analysis!$C$13/12 -> $3,709 | F86: $1,991 | G86: $987,085
B87: 81 | C87: $987,085 | D87: =Analysis!$C$14 -> $5,700 | E87: =C87*Analysis!$C$13/12 -> $3,702 | F87: $1,999 | G87: $985,087
B88: 82 | C88: $985,087 | D88: =Analysis!$C$14 -> $5,700 | E88: =C88*Analysis!$C$13/12 -> $3,694 | F88: $2,006 | G88: $983,081
B89: 83 | C89: $983,081 | D89: =Analysis!$C$14 -> $5,700 | E89: =C89*Analysis!$C$13/12 -> $3,687 | F89: $2,014 | G89: $981,067
A90: 7 | B90: 84 | C90: $981,067 | D90: =Analysis!$C$14 -> $5,700 | E90: =C90*Analysis!$C$13/12 -> $3,679 | F90: $2,021 | G90: $979,046
B91: 85 | C91: $979,046 | D91: =Analysis!$C$14 -> $5,700 | E91: =C91*Analysis!$C$13/12 -> $3,671 | F91: $2,029 | G91: $977,017
B92: 86 | C92: $977,017 | D92: =Analysis!$C$14 -> $5,700 | E92: =C92*Analysis!$C$13/12 -> $3,664 | F92: $2,036 | G92: $974,981
B93: 87 | C93: $974,981 | D93: =Analysis!$C$14 -> $5,700 | E93: =C93*Analysis!$C$13/12 -> $3,656 | F93: $2,044 | G93: $972,936
B94: 88 | C94: $972,936 | D94: =Analysis!$C$14 -> $5,700 | E94: =C94*Analysis!$C$13/12 -> $3,649 | F94: $2,052 | G94: $970,885
B95: 89 | C95: $970,885 | D95: =Analysis!$C$14 -> $5,700 | E95: =C95*Analysis!$C$13/12 -> $3,641 | F95: $2,059 | G95: $968,825
B96: 90 | C96: $968,825 | D96: =Analysis!$C$14 -> $5,700 | E96: =C96*Analysis!$C$13/12 -> $3,633 | F96: $2,067 | G96: $966,758
B97: 91 | C97: $966,758 | D97: =Analysis!$C$14 -> $5,700 | E97: =C97*Analysis!$C$13/12 -> $3,625 | F97: $2,075 | G97: $964,683
B98: 92 | C98: $964,683 | D98: =Analysis!$C$14 -> $5,700 | E98: =C98*Analysis!$C$13/12 -> $3,618 | F98: $2,083 | G98: $962,601
B99: 93 | C99: $962,601 | D99: =Analysis!$C$14 -> $5,700 | E99: =C99*Analysis!$C$13/12 -> $3,610 | F99: $2,090 | G99: $960,510
B100: 94 | C100: $960,510 | D100: =Analysis!$C$14 -> $5,700 | E100: =C100*Analysis!$C$13/12 -> $3,602 | F100: $2,098 | G100: $958,412
B101: 95 | C101: $958,412 | D101: =Analysis!$C$14 -> $5,700 | E101: =C101*Analysis!$C$13/12 -> $3,594 | F101: $2,106 | G101: $956,306
A102: 8 | B102: 96 | C102: $956,306 | D102: =Analysis!$C$14 -> $5,700 | E102: =C102*Analysis!$C$13/12 -> $3,586 | F102: $2,114 | G102: $954,192
B103: 97 | C103: $954,192 | D103: =Analysis!$C$14 -> $5,700 | E103: =C103*Analysis!$C$13/12 -> $3,578 | F103: $2,122 | G103: $952,070
B104: 98 | C104: $952,070 | D104: =Analysis!$C$14 -> $5,700 | E104: =C104*Analysis!$C$13/12 -> $3,570 | F104: $2,130 | G104: $949,940
B105: 99 | C105: $949,940 | D105: =Analysis!$C$14 -> $5,700 | E105: =C105*Analysis!$C$13/12 -> $3,562 | F105: $2,138 | G105: $947,802
B106: 100 | C106: $947,802 | D106: =Analysis!$C$14 -> $5,700 | E106: =C106*Analysis!$C$13/12 -> $3,554 | F106: $2,146 | G106: $945,656
B107: 101 | C107: $945,656 | D107: =Analysis!$C$14 -> $5,700 | E107: =C107*Analysis!$C$13/12 -> $3,546 | F107: $2,154 | G107: $943,502
B108: 102 | C108: $943,502 | D108: =Analysis!$C$14 -> $5,700 | E108: =C108*Analysis!$C$13/12 -> $3,538 | F108: $2,162 | G108: $941,340
B109: 103 | C109: $941,340 | D109: =Analysis!$C$14 -> $5,700 | E109: =C109*Analysis!$C$13/12 -> $3,530 | F109: $2,170 | G109: $939,170
B110: 104 | C110: $939,170 | D110: =Analysis!$C$14 -> $5,700 | E110: =C110*Analysis!$C$13/12 -> $3,522 | F110: $2,178 | G110: $936,991
B111: 105 | C111: $936,991 | D111: =Analysis!$C$14 -> $5,700 | E111: =C111*Analysis!$C$13/12 -> $3,514 | F111: $2,186 | G111: $934,805
B112: 106 | C112: $934,805 | D112: =Analysis!$C$14 -> $5,700 | E112: =C112*Analysis!$C$13/12 -> $3,506 | F112: $2,195 | G112: $932,610
B113: 107 | C113: $932,610 | D113: =Analysis!$C$14 -> $5,700 | E113: =C113*Analysis!$C$13/12 -> $3,497 | F113: $2,203 | G113: $930,407
A114: 9 | B114: 108 | C114: $930,407 | D114: =Analysis!$C$14 -> $5,700 | E114: =C114*Analysis!$C$13/12 -> $3,489 | F114: $2,211 | G114: $928,196
B115: 109 | C115: $928,196 | D115: =Analysis!$C$14 -> $5,700 | E115: =C115*Analysis!$C$13/12 -> $3,481 | F115: $2,219 | G115: $925,977
B116: 110 | C116: $925,977 | D116: =Analysis!$C$14 -> $5,700 | E116: =C116*Analysis!$C$13/12 -> $3,472 | F116: $2,228 | G116: $923,749
B117: 111 | C117: $923,749 | D117: =Analysis!$C$14 -> $5,700 | E117: =C117*Analysis!$C$13/12 -> $3,464 | F117: $2,236 | G117: $921,513
B118: 112 | C118: $921,513 | D118: =Analysis!$C$14 -> $5,700 | E118: =C118*Analysis!$C$13/12 -> $3,456 | F118: $2,245 | G118: $919,268
B119: 113 | C119: $919,268 | D119: =Analysis!$C$14 -> $5,700 | E119: =C119*Analysis!$C$13/12 -> $3,447 | F119: $2,253 | G119: $917,015
B120: 114 | C120: $917,015 | D120: =Analysis!$C$14 -> $5,700 | E120: =C120*Analysis!$C$13/12 -> $3,439 | F120: $2,261 | G120: $914,754
B121: 115 | C121: $914,754 | D121: =Analysis!$C$14 -> $5,700 | E121: =C121*Analysis!$C$13/12 -> $3,430 | F121: $2,270 | G121: $912,484
B122: 116 | C122: $912,484 | D122: =Analysis!$C$14 -> $5,700 | E122: =C122*Analysis!$C$13/12 -> $3,422 | F122: $2,278 | G122: $910,205
B123: 117 | C123: $910,205 | D123: =Analysis!$C$14 -> $5,700 | E123: =C123*Analysis!$C$13/12 -> $3,413 | F123: $2,287 | G123: $907,919
B124: 118 | C124: $907,919 | D124: =Analysis!$C$14 -> $5,700 | E124: =C124*Analysis!$C$13/12 -> $3,405 | F124: $2,296 | G124: $905,623
B125: 119 | C125: $905,623 | D125: =Analysis!$C$14 -> $5,700 | E125: =C125*Analysis!$C$13/12 -> $3,396 | F125: $2,304 | G125: $903,319
A126: 10 | B126: 120 | C126: $903,319 | D126: =Analysis!$C$14 -> $5,700 | E126: =C126*Analysis!$C$13/12 -> $3,387 | F126: $2,313 | G126: $901,006
B127: 121 | C127: $901,006 | D127: =Analysis!$C$14 -> $5,700 | E127: =C127*Analysis!$C$13/12 -> $3,379 | F127: $2,321 | G127: $898,685
B128: 122 | C128: $898,685 | D128: =Analysis!$C$14 -> $5,700 | E128: =C128*Analysis!$C$13/12 -> $3,370 | F128: $2,330 | G128: $896,355
B129: 123 | C129: $896,355 | D129: =Analysis!$C$14 -> $5,700 | E129: =C129*Analysis!$C$13/12 -> $3,361 | F129: $2,339 | G129: $894,016
B130: 124 | C130: $894,016 | D130: =Analysis!$C$14 -> $5,700 | E130: =C130*Analysis!$C$13/12 -> $3,353 | F130: $2,348 | G130: $891,668
B131: 125 | C131: $891,668 | D131: =Analysis!$C$14 -> $5,700 | E131: =C131*Analysis!$C$13/12 -> $3,344 | F131: $2,356 | G131: $889,312
B132: 126 | C132: $889,312 | D132: =Analysis!$C$14 -> $5,700 | E132: =C132*Analysis!$C$13/12 -> $3,335 | F132: $2,365 | G132: $886,946
B133: 127 | C133: $886,946 | D133: =Analysis!$C$14 -> $5,700 | E133: =C133*Analysis!$C$13/12 -> $3,326 | F133: $2,374 | G133: $884,572
B134: 128 | C134: $884,572 | D134: =Analysis!$C$14 -> $5,700 | E134: =C134*Analysis!$C$13/12 -> $3,317 | F134: $2,383 | G134: $882,189
B135: 129 | C135: $882,189 | D135: =Analysis!$C$14 -> $5,700 | E135: =C135*Analysis!$C$13/12 -> $3,308 | F135: =D135-E135 -> $2,392 | G135: =C135-F135 -> $879,797
B136: 130 | C136: =G135 -> $879,797 | D136: =Analysis!$C$14 -> $5,700 | E136: =C136*Analysis!$C$13/12 -> $3,299 | F136: $2,401 | G136: $877,396
B137: 131 | C137: $877,396 | D137: =Analysis!$C$14 -> $5,700 | E137: =C137*Analysis!$C$13/12 -> $3,290 | F137: $2,410 | G137: $874,986
A138: 11 | B138: 132 | C138: $874,986 | D138: =Analysis!$C$14 -> $5,700 | E138: =C138*Analysis!$C$13/12 -> $3,281 | F138: $2,419 | G138: $872,567
B139: 133 | C139: $872,567 | D139: =Analysis!$C$14 -> $5,700 | E139: =C139*Analysis!$C$13/12 -> $3,272 | F139: $2,428 | G139: $870,139
B140: 134 | C140: $870,139 | D140: =Analysis!$C$14 -> $5,700 | E140: =C140*Analysis!$C$13/12 -> $3,263 | F140: $2,437 | G140: $867,702
B141: 135 | C141: $867,702 | D141: =Analysis!$C$14 -> $5,700 | E141: =C141*Analysis!$C$13/12 -> $3,254 | F141: $2,446 | G141: $865,256
B142: 136 | C142: $865,256 | D142: =Analysis!$C$14 -> $5,700 | E142: =C142*Analysis!$C$13/12 -> $3,245 | F142: $2,456 | G142: $862,800
B143: 137 | C143: $862,800 | D143: =Analysis!$C$14 -> $5,700 | E143: =C143*Analysis!$C$13/12 -> $3,236 | F143: $2,465 | G143: $860,335
B144: 138 | C144: $860,335 | D144: =Analysis!$C$14 -> $5,700 | E144: =C144*Analysis!$C$13/12 -> $3,226 | F144: $2,474 | G144: $857,861
B145: 139 | C145: $857,861 | D145: =Analysis!$C$14 -> $5,700 | E145: =C145*Analysis!$C$13/12 -> $3,217 | F145: $2,483 | G145: $855,378
B146: 140 | C146: $855,378 | D146: =Analysis!$C$14 -> $5,700 | E146: =C146*Analysis!$C$13/12 -> $3,208 | F146: $2,493 | G146: $852,886
B147: 141 | C147: $852,886 | D147: =Analysis!$C$14 -> $5,700 | E147: =C147*Analysis!$C$13/12 -> $3,198 | F147: $2,502 | G147: $850,384
B148: 142 | C148: $850,384 | D148: =Analysis!$C$14 -> $5,700 | E148: =C148*Analysis!$C$13/12 -> $3,189 | F148: $2,511 | G148: $847,872
B149: 143 | C149: $847,872 | D149: =Analysis!$C$14 -> $5,700 | E149: =C149*Analysis!$C$13/12 -> $3,180 | F149: $2,521 | G149: $845,352
A150: 12 | B150: 144 | C150: $845,352 | D150: =Analysis!$C$14 -> $5,700 | E150: =C150*Analysis!$C$13/12 -> $3,170 | F150: $2,530 | G150: $842,822
B151: 145 | C151: $842,822 | D151: =Analysis!$C$14 -> $5,700 | E151: =C151*Analysis!$C$13/12 -> $3,161 | F151: $2,540 | G151: $840,282
B152: 146 | C152: $840,282 | D152: =Analysis!$C$14 -> $5,700 | E152: =C152*Analysis!$C$13/12 -> $3,151 | F152: $2,549 | G152: $837,733
B153: 147 | C153: $837,733 | D153: =Analysis!$C$14 -> $5,700 | E153: =C153*Analysis!$C$13/12 -> $3,141 | F153: $2,559 | G153: $835,174
B154: 148 | C154: $835,174 | D154: =Analysis!$C$14 -> $5,700 | E154: =C154*Analysis!$C$13/12 -> $3,132 | F154: $2,568 | G154: $832,606
B155: 149 | C155: $832,606 | D155: =Analysis!$C$14 -> $5,700 | E155: =C155*Analysis!$C$13/12 -> $3,122 | F155: $2,578 | G155: $830,028
B156: 150 | C156: $830,028 | D156: =Analysis!$C$14 -> $5,700 | E156: =C156*Analysis!$C$13/12 -> $3,113 | F156: $2,588 | G156: $827,440
B157: 151 | C157: $827,440 | D157: =Analysis!$C$14 -> $5,700 | E157: =C157*Analysis!$C$13/12 -> $3,103 | F157: $2,597 | G157: $824,843
B158: 152 | C158: $824,843 | D158: =Analysis!$C$14 -> $5,700 | E158: =C158*Analysis!$C$13/12 -> $3,093 | F158: $2,607 | G158: $822,236
B159: 153 | C159: $822,236 | D159: =Analysis!$C$14 -> $5,700 | E159: =C159*Analysis!$C$13/12 -> $3,083 | F159: $2,617 | G159: $819,619
B160: 154 | C160: $819,619 | D160: =Analysis!$C$14 -> $5,700 | E160: =C160*Analysis!$C$13/12 -> $3,074 | F160: $2,627 | G160: $816,992
B161: 155 | C161: $816,992 | D161: =Analysis!$C$14 -> $5,700 | E161: =C161*Analysis!$C$13/12 -> $3,064 | F161: $2,636 | G161: $814,356
A162: 13 | B162: 156 | C162: $814,356 | D162: =Analysis!$C$14 -> $5,700 | E162: =C162*Analysis!$C$13/12 -> $3,054 | F162: $2,646 | G162: $811,710
B163: 157 | C163: $811,710 | D163: =Analysis!$C$14 -> $5,700 | E163: =C163*Analysis!$C$13/12 -> $3,044 | F163: $2,656 | G163: $809,053
B164: 158 | C164: $809,053 | D164: =Analysis!$C$14 -> $5,700 | E164: =C164*Analysis!$C$13/12 -> $3,034 | F164: $2,666 | G164: $806,387
B165: 159 | C165: $806,387 | D165: =Analysis!$C$14 -> $5,700 | E165: =C165*Analysis!$C$13/12 -> $3,024 | F165: $2,676 | G165: $803,711
B166: 160 | C166: $803,711 | D166: =Analysis!$C$14 -> $5,700 | E166: =C166*Analysis!$C$13/12 -> $3,014 | F166: $2,686 | G166: $801,024
B167: 161 | C167: $801,024 | D167: =Analysis!$C$14 -> $5,700 | E167: =C167*Analysis!$C$13/12 -> $3,004 | F167: $2,696 | G167: $798,328
B168: 162 | C168: $798,328 | D168: =Analysis!$C$14 -> $5,700 | E168: =C168*Analysis!$C$13/12 -> $2,994 | F168: $2,706 | G168: $795,622
B169: 163 | C169: $795,622 | D169: =Analysis!$C$14 -> $5,700 | E169: =C169*Analysis!$C$13/12 -> $2,984 | F169: $2,717 | G169: $792,905
B170: 164 | C170: $792,905 | D170: =Analysis!$C$14 -> $5,700 | E170: =C170*Analysis!$C$13/12 -> $2,973 | F170: $2,727 | G170: $790,178
B171: 165 | C171: $790,178 | D171: =Analysis!$C$14 -> $5,700 | E171: =C171*Analysis!$C$13/12 -> $2,963 | F171: $2,737 | G171: $787,441
B172: 166 | C172: $787,441 | D172: =Analysis!$C$14 -> $5,700 | E172: =C172*Analysis!$C$13/12 -> $2,953 | F172: $2,747 | G172: $784,694
B173: 167 | C173: $784,694 | D173: =Analysis!$C$14 -> $5,700 | E173: =C173*Analysis!$C$13/12 -> $2,943 | F173: $2,758 | G173: $781,936
A174: 14 | B174: 168 | C174: $781,936 | D174: =Analysis!$C$14 -> $5,700 | E174: =C174*Analysis!$C$13/12 -> $2,932 | F174: $2,768 | G174: $779,168
B175: 169 | C175: $779,168 | D175: =Analysis!$C$14 -> $5,700 | E175: =C175*Analysis!$C$13/12 -> $2,922 | F175: $2,778 | G175: $776,390
B176: 170 | C176: $776,390 | D176: =Analysis!$C$14 -> $5,700 | E176: =C176*Analysis!$C$13/12 -> $2,911 | F176: $2,789 | G176: $773,601
B177: 171 | C177: $773,601 | D177: =Analysis!$C$14 -> $5,700 | E177: =C177*Analysis!$C$13/12 -> $2,901 | F177: $2,799 | G177: $770,802
B178: 172 | C178: $770,802 | D178: =Analysis!$C$14 -> $5,700 | E178: =C178*Analysis!$C$13/12 -> $2,891 | F178: $2,810 | G178: $767,992
B179: 173 | C179: $767,992 | D179: =Analysis!$C$14 -> $5,700 | E179: =C179*Analysis!$C$13/12 -> $2,880 | F179: $2,820 | G179: $765,172
B180: 174 | C180: $765,172 | D180: =Analysis!$C$14 -> $5,700 | E180: =C180*Analysis!$C$13/12 -> $2,869 | F180: $2,831 | G180: $762,341
B181: 175 | C181: $762,341 | D181: =Analysis!$C$14 -> $5,700 | E181: =C181*Analysis!$C$13/12 -> $2,859 | F181: $2,841 | G181: $759,500
B182: 176 | C182: $759,500 | D182: =Analysis!$C$14 -> $5,700 | E182: =C182*Analysis!$C$13/12 -> $2,848 | F182: $2,852 | G182: $756,648
B183: 177 | C183: $756,648 | D183: =Analysis!$C$14 -> $5,700 | E183: =C183*Analysis!$C$13/12 -> $2,837 | F183: $2,863 | G183: $753,785
B184: 178 | C184: $753,785 | D184: =Analysis!$C$14 -> $5,700 | E184: =C184*Analysis!$C$13/12 -> $2,827 | F184: $2,874 | G184: $750,911
B185: 179 | C185: $750,911 | D185: =Analysis!$C$14 -> $5,700 | E185: =C185*Analysis!$C$13/12 -> $2,816 | F185: $2,884 | G185: $748,027
A186: 15 | B186: 180 | C186: $748,027 | D186: =Analysis!$C$14 -> $5,700 | E186: =C186*Analysis!$C$13/12 -> $2,805 | F186: $2,895 | G186: $745,132
B187: 181 | C187: $745,132 | D187: =Analysis!$C$14 -> $5,700 | E187: =C187*Analysis!$C$13/12 -> $2,794 | F187: $2,906 | G187: $742,226
B188: 182 | C188: $742,226 | D188: =Analysis!$C$14 -> $5,700 | E188: =C188*Analysis!$C$13/12 -> $2,783 | F188: $2,917 | G188: $739,309
B189: 183 | C189: $739,309 | D189: =Analysis!$C$14 -> $5,700 | E189: =C189*Analysis!$C$13/12 -> $2,772 | F189: $2,928 | G189: $736,381
B190: 184 | C190: $736,381 | D190: =Analysis!$C$14 -> $5,700 | E190: =C190*Analysis!$C$13/12 -> $2,761 | F190: $2,939 | G190: $733,443
B191: 185 | C191: $733,443 | D191: =Analysis!$C$14 -> $5,700 | E191: =C191*Analysis!$C$13/12 -> $2,750 | F191: $2,950 | G191: $730,493
B192: 186 | C192: $730,493 | D192: =Analysis!$C$14 -> $5,700 | E192: =C192*Analysis!$C$13/12 -> $2,739 | F192: $2,961 | G192: $727,532
B193: 187 | C193: $727,532 | D193: =Analysis!$C$14 -> $5,700 | E193: =C193*Analysis!$C$13/12 -> $2,728 | F193: $2,972 | G193: $724,560
B194: 188 | C194: $724,560 | D194: =Analysis!$C$14 -> $5,700 | E194: =C194*Analysis!$C$13/12 -> $2,717 | F194: $2,983 | G194: $721,577
B195: 189 | C195: $721,577 | D195: =Analysis!$C$14 -> $5,700 | E195: =C195*Analysis!$C$13/12 -> $2,706 | F195: $2,994 | G195: $718,583
B196: 190 | C196: $718,583 | D196: =Analysis!$C$14 -> $5,700 | E196: =C196*Analysis!$C$13/12 -> $2,695 | F196: $3,006 | G196: $715,577
B197: 191 | C197: $715,577 | D197: =Analysis!$C$14 -> $5,700 | E197: =C197*Analysis!$C$13/12 -> $2,683 | F197: $3,017 | G197: $712,560
A198: 16 | B198: 192 | C198: $712,560 | D198: =Analysis!$C$14 -> $5,700 | E198: =C198*Analysis!$C$13/12 -> $2,672 | F198: $3,028 | G198: $709,532
B199: 193 | C199: $709,532 | D199: =Analysis!$C$14 -> $5,700 | E199: =C199*Analysis!$C$13/12 -> $2,661 | F199: =D199-E199 -> $3,039 | G199: =C199-F199 -> $706,493
B200: 194 | C200: =G199 -> $706,493 | D200: =Analysis!$C$14 -> $5,700 | E200: =C200*Analysis!$C$13/12 -> $2,649 | F200: $3,051 | G200: $703,442
B201: 195 | C201: $703,442 | D201: =Analysis!$C$14 -> $5,700 | E201: =C201*Analysis!$C$13/12 -> $2,638 | F201: $3,062 | G201: $700,379
... 165 more rows

Sheet 1 Family Amortization Schedule
A1: =Analysis!E6 -> 1 Family Home
A2: Amortization Schedule
C4: Beginning | G4: Ending
C5: Principal | D5: Monthly | G5: Principal
A6: Year | B6: Month | C6: Balance | D6: Payment | E6: Interest | F6: Principal | G6: Balance
B7: 1 | C7: =Analysis!E9 -> $520,000 | D7: =Analysis!$E$14 -> $2,558 | E7: =C7*Analysis!$E$13/12 -> $1,842 | F7: =D7-E7 -> $716 | G7: =C7-F7 -> $519,284
B8: 2 | C8: =G7 -> $519,284 | D8: =Analysis!$E$14 -> $2,558 | E8: =C8*Analysis!$E$13/12 -> $1,839 | F8: $719 | G8: $518,565
B9: 3 | C9: $518,565 | D9: =Analysis!$E$14 -> $2,558 | E9: =C9*Analysis!$E$13/12 -> $1,837 | F9: $722 | G9: $517,843
B10: 4 | C10: $517,843 | D10: =Analysis!$E$14 -> $2,558 | E10: =C10*Analysis!$E$13/12 -> $1,834 | F10: $724 | G10: $517,119
B11: 5 | C11: $517,119 | D11: =Analysis!$E$14 -> $2,558 | E11: =C11*Analysis!$E$13/12 -> $1,831 | F11: $727 | G11: $516,392
B12: 6 | C12: $516,392 | D12: =Analysis!$E$14 -> $2,558 | E12: =C12*Analysis!$E$13/12 -> $1,829 | F12: $729 | G12: $515,663
B13: 7 | C13: $515,663 | D13: =Analysis!$E$14 -> $2,558 | E13: =C13*Analysis!$E$13/12 -> $1,826 | F13: $732 | G13: $514,931
B14: 8 | C14: $514,931 | D14: =Analysis!$E$14 -> $2,558 | E14: =C14*Analysis!$E$13/12 -> $1,824 | F14: $734 | G14: $514,197
B15: 9 | C15: $514,197 | D15: =Analysis!$E$14 -> $2,558 | E15: =C15*Analysis!$E$13/12 -> $1,821 | F15: $737 | G15: $513,460
B16: 10 | C16: $513,460 | D16: =Analysis!$E$14 -> $2,558 | E16: =C16*Analysis!$E$13/12 -> $1,819 | F16: $740 | G16: $512,721
B17: 11 | C17: $512,721 | D17: =Analysis!$E$14 -> $2,558 | E17: =C17*Analysis!$E$13/12 -> $1,816 | F17: $742 | G17: $511,978
A18: 1 | B18: 12 | C18: $511,978 | D18: =Analysis!$E$14 -> $2,558 | E18: =C18*Analysis!$E$13/12 -> $1,813 | F18: $745 | G18: $511,233
B19: 13 | C19: $511,233 | D19: =Analysis!$E$14 -> $2,558 | E19: =C19*Analysis!$E$13/12 -> $1,811 | F19: $747 | G19: $510,486
B20: 14 | C20: $510,486 | D20: =Analysis!$E$14 -> $2,558 | E20: =C20*Analysis!$E$13/12 -> $1,808 | F20: $750 | G20: $509,736
B21: 15 | C21: $509,736 | D21: =Analysis!$E$14 -> $2,558 | E21: =C21*Analysis!$E$13/12 -> $1,805 | F21: $753 | G21: $508,983
B22: 16 | C22: $508,983 | D22: =Analysis!$E$14 -> $2,558 | E22: =C22*Analysis!$E$13/12 -> $1,803 | F22: $755 | G22: $508,228
B23: 17 | C23: $508,228 | D23: =Analysis!$E$14 -> $2,558 | E23: =C23*Analysis!$E$13/12 -> $1,800 | F23: $758 | G23: $507,470
B24: 18 | C24: $507,470 | D24: =Analysis!$E$14 -> $2,558 | E24: =C24*Analysis!$E$13/12 -> $1,797 | F24: $761 | G24: $506,709
B25: 19 | C25: $506,709 | D25: =Analysis!$E$14 -> $2,558 | E25: =C25*Analysis!$E$13/12 -> $1,795 | F25: $763 | G25: $505,945
B26: 20 | C26: $505,945 | D26: =Analysis!$E$14 -> $2,558 | E26: =C26*Analysis!$E$13/12 -> $1,792 | F26: $766 | G26: $505,179
B27: 21 | C27: $505,179 | D27: =Analysis!$E$14 -> $2,558 | E27: =C27*Analysis!$E$13/12 -> $1,789 | F27: $769 | G27: $504,410
B28: 22 | C28: $504,410 | D28: =Analysis!$E$14 -> $2,558 | E28: =C28*Analysis!$E$13/12 -> $1,786 | F28: $772 | G28: $503,639
B29: 23 | C29: $503,639 | D29: =Analysis!$E$14 -> $2,558 | E29: =C29*Analysis!$E$13/12 -> $1,784 | F29: $774 | G29: $502,864
A30: 2 | B30: 24 | C30: $502,864 | D30: =Analysis!$E$14 -> $2,558 | E30: =C30*Analysis!$E$13/12 -> $1,781 | F30: $777 | G30: $502,087
B31: 25 | C31: $502,087 | D31: =Analysis!$E$14 -> $2,558 | E31: =C31*Analysis!$E$13/12 -> $1,778 | F31: $780 | G31: $501,307
B32: 26 | C32: $501,307 | D32: =Analysis!$E$14 -> $2,558 | E32: =C32*Analysis!$E$13/12 -> $1,775 | F32: $783 | G32: $500,525
B33: 27 | C33: $500,525 | D33: =Analysis!$E$14 -> $2,558 | E33: =C33*Analysis!$E$13/12 -> $1,773 | F33: $785 | G33: $499,739
B34: 28 | C34: $499,739 | D34: =Analysis!$E$14 -> $2,558 | E34: =C34*Analysis!$E$13/12 -> $1,770 | F34: $788 | G34: $498,951
B35: 29 | C35: $498,951 | D35: =Analysis!$E$14 -> $2,558 | E35: =C35*Analysis!$E$13/12 -> $1,767 | F35: $791 | G35: $498,160
B36: 30 | C36: $498,160 | D36: =Analysis!$E$14 -> $2,558 | E36: =C36*Analysis!$E$13/12 -> $1,764 | F36: $794 | G36: $497,366
B37: 31 | C37: $497,366 | D37: =Analysis!$E$14 -> $2,558 | E37: =C37*Analysis!$E$13/12 -> $1,762 | F37: $797 | G37: $496,570
B38: 32 | C38: $496,570 | D38: =Analysis!$E$14 -> $2,558 | E38: =C38*Analysis!$E$13/12 -> $1,759 | F38: $799 | G38: $495,770
B39: 33 | C39: $495,770 | D39: =Analysis!$E$14 -> $2,558 | E39: =C39*Analysis!$E$13/12 -> $1,756 | F39: $802 | G39: $494,968
B40: 34 | C40: $494,968 | D40: =Analysis!$E$14 -> $2,558 | E40: =C40*Analysis!$E$13/12 -> $1,753 | F40: $805 | G40: $494,163
B41: 35 | C41: $494,163 | D41: =Analysis!$E$14 -> $2,558 | E41: =C41*Analysis!$E$13/12 -> $1,750 | F41: $808 | G41: $493,355
A42: 3 | B42: 36 | C42: $493,355 | D42: =Analysis!$E$14 -> $2,558 | E42: =C42*Analysis!$E$13/12 -> $1,747 | F42: $811 | G42: $492,544
B43: 37 | C43: $492,544 | D43: =Analysis!$E$14 -> $2,558 | E43: =C43*Analysis!$E$13/12 -> $1,744 | F43: $814 | G43: $491,731
B44: 38 | C44: $491,731 | D44: =Analysis!$E$14 -> $2,558 | E44: =C44*Analysis!$E$13/12 -> $1,742 | F44: $817 | G44: $490,914
B45: 39 | C45: $490,914 | D45: =Analysis!$E$14 -> $2,558 | E45: =C45*Analysis!$E$13/12 -> $1,739 | F45: $819 | G45: $490,095
B46: 40 | C46: $490,095 | D46: =Analysis!$E$14 -> $2,558 | E46: =C46*Analysis!$E$13/12 -> $1,736 | F46: $822 | G46: $489,272
B47: 41 | C47: $489,272 | D47: =Analysis!$E$14 -> $2,558 | E47: =C47*Analysis!$E$13/12 -> $1,733 | F47: $825 | G47: $488,447
B48: 42 | C48: $488,447 | D48: =Analysis!$E$14 -> $2,558 | E48: =C48*Analysis!$E$13/12 -> $1,730 | F48: $828 | G48: $487,619
B49: 43 | C49: $487,619 | D49: =Analysis!$E$14 -> $2,558 | E49: =C49*Analysis!$E$13/12 -> $1,727 | F49: $831 | G49: $486,788
B50: 44 | C50: $486,788 | D50: =Analysis!$E$14 -> $2,558 | E50: =C50*Analysis!$E$13/12 -> $1,724 | F50: $834 | G50: $485,954
B51: 45 | C51: $485,954 | D51: =Analysis!$E$14 -> $2,558 | E51: =C51*Analysis!$E$13/12 -> $1,721 | F51: $837 | G51: $485,117
B52: 46 | C52: $485,117 | D52: =Analysis!$E$14 -> $2,558 | E52: =C52*Analysis!$E$13/12 -> $1,718 | F52: $840 | G52: $484,277
B53: 47 | C53: $484,277 | D53: =Analysis!$E$14 -> $2,558 | E53: =C53*Analysis!$E$13/12 -> $1,715 | F53: $843 | G53: $483,434
A54: 4 | B54: 48 | C54: $483,434 | D54: =Analysis!$E$14 -> $2,558 | E54: =C54*Analysis!$E$13/12 -> $1,712 | F54: $846 | G54: $482,588
B55: 49 | C55: $482,588 | D55: =Analysis!$E$14 -> $2,558 | E55: =C55*Analysis!$E$13/12 -> $1,709 | F55: $849 | G55: $481,739
B56: 50 | C56: $481,739 | D56: =Analysis!$E$14 -> $2,558 | E56: =C56*Analysis!$E$13/12 -> $1,706 | F56: $852 | G56: $480,887
B57: 51 | C57: $480,887 | D57: =Analysis!$E$14 -> $2,558 | E57: =C57*Analysis!$E$13/12 -> $1,703 | F57: $855 | G57: $480,032
B58: 52 | C58: $480,032 | D58: =Analysis!$E$14 -> $2,558 | E58: =C58*Analysis!$E$13/12 -> $1,700 | F58: $858 | G58: $479,174
B59: 53 | C59: $479,174 | D59: =Analysis!$E$14 -> $2,558 | E59: =C59*Analysis!$E$13/12 -> $1,697 | F59: $861 | G59: $478,313
B60: 54 | C60: $478,313 | D60: =Analysis!$E$14 -> $2,558 | E60: =C60*Analysis!$E$13/12 -> $1,694 | F60: $864 | G60: $477,449
B61: 55 | C61: $477,449 | D61: =Analysis!$E$14 -> $2,558 | E61: =C61*Analysis!$E$13/12 -> $1,691 | F61: $867 | G61: $476,582
B62: 56 | C62: $476,582 | D62: =Analysis!$E$14 -> $2,558 | E62: =C62*Analysis!$E$13/12 -> $1,688 | F62: $870 | G62: $475,712
B63: 57 | C63: $475,712 | D63: =Analysis!$E$14 -> $2,558 | E63: =C63*Analysis!$E$13/12 -> $1,685 | F63: $873 | G63: $474,838
B64: 58 | C64: $474,838 | D64: =Analysis!$E$14 -> $2,558 | E64: =C64*Analysis!$E$13/12 -> $1,682 | F64: $876 | G64: $473,962
B65: 59 | C65: $473,962 | D65: =Analysis!$E$14 -> $2,558 | E65: =C65*Analysis!$E$13/12 -> $1,679 | F65: $879 | G65: $473,083
A66: 5 | B66: 60 | C66: $473,083 | D66: =Analysis!$E$14 -> $2,558 | E66: =C66*Analysis!$E$13/12 -> $1,676 | F66: $883 | G66: $472,200
B67: 61 | C67: $472,200 | D67: =Analysis!$E$14 -> $2,558 | E67: =C67*Analysis!$E$13/12 -> $1,672 | F67: $886 | G67: $471,314
B68: 62 | C68: $471,314 | D68: =Analysis!$E$14 -> $2,558 | E68: =C68*Analysis!$E$13/12 -> $1,669 | F68: $889 | G68: $470,425
B69: 63 | C69: $470,425 | D69: =Analysis!$E$14 -> $2,558 | E69: =C69*Analysis!$E$13/12 -> $1,666 | F69: $892 | G69: $469,533
B70: 64 | C70: $469,533 | D70: =Analysis!$E$14 -> $2,558 | E70: =C70*Analysis!$E$13/12 -> $1,663 | F70: $895 | G70: $468,638
B71: 65 | C71: $468,638 | D71: =Analysis!$E$14 -> $2,558 | E71: =C71*Analysis!$E$13/12 -> $1,660 | F71: =D71-E71 -> $898 | G71: =C71-F71 -> $467,740
B72: 66 | C72: =G71 -> $467,740 | D72: =Analysis!$E$14 -> $2,558 | E72: =C72*Analysis!$E$13/12 -> $1,657 | F72: $902 | G72: $466,838
B73: 67 | C73: $466,838 | D73: =Analysis!$E$14 -> $2,558 | E73: =C73*Analysis!$E$13/12 -> $1,653 | F73: $905 | G73: $465,934
B74: 68 | C74: $465,934 | D74: =Analysis!$E$14 -> $2,558 | E74: =C74*Analysis!$E$13/12 -> $1,650 | F74: $908 | G74: $465,026
B75: 69 | C75: $465,026 | D75: =Analysis!$E$14 -> $2,558 | E75: =C75*Analysis!$E$13/12 -> $1,647 | F75: $911 | G75: $464,115
B76: 70 | C76: $464,115 | D76: =Analysis!$E$14 -> $2,558 | E76: =C76*Analysis!$E$13/12 -> $1,644 | F76: $914 | G76: $463,200
B77: 71 | C77: $463,200 | D77: =Analysis!$E$14 -> $2,558 | E77: =C77*Analysis!$E$13/12 -> $1,641 | F77: $918 | G77: $462,283
A78: 6 | B78: 72 | C78: $462,283 | D78: =Analysis!$E$14 -> $2,558 | E78: =C78*Analysis!$E$13/12 -> $1,637 | F78: $921 | G78: $461,362
B79: 73 | C79: $461,362 | D79: =Analysis!$E$14 -> $2,558 | E79: =C79*Analysis!$E$13/12 -> $1,634 | F79: $924 | G79: $460,438
B80: 74 | C80: $460,438 | D80: =Analysis!$E$14 -> $2,558 | E80: =C80*Analysis!$E$13/12 -> $1,631 | F80: $927 | G80: $459,511
B81: 75 | C81: $459,511 | D81: =Analysis!$E$14 -> $2,558 | E81: =C81*Analysis!$E$13/12 -> $1,627 | F81: $931 | G81: $458,580
B82: 76 | C82: $458,580 | D82: =Analysis!$E$14 -> $2,558 | E82: =C82*Analysis!$E$13/12 -> $1,624 | F82: $934 | G82: $457,646
B83: 77 | C83: $457,646 | D83: =Analysis!$E$14 -> $2,558 | E83: =C83*Analysis!$E$13/12 -> $1,621 | F83: $937 | G83: $456,709
B84: 78 | C84: $456,709 | D84: =Analysis!$E$14 -> $2,558 | E84: =C84*Analysis!$E$13/12 -> $1,618 | F84: $941 | G84: $455,768
B85: 79 | C85: $455,768 | D85: =Analysis!$E$14 -> $2,558 | E85: =C85*Analysis!$E$13/12 -> $1,614 | F85: $944 | G85: $454,824
B86: 80 | C86: $454,824 | D86: =Analysis!$E$14 -> $2,558 | E86: =C86*Analysis!$E$13/12 -> $1,611 | F86: $947 | G86: $453,877
B87: 81 | C87: $453,877 | D87: =Analysis!$E$14 -> $2,558 | E87: =C87*Analysis!$E$13/12 -> $1,607 | F87: $951 | G87: $452,926
B88: 82 | C88: $452,926 | D88: =Analysis!$E$14 -> $2,558 | E88: =C88*Analysis!$E$13/12 -> $1,604 | F88: $954 | G88: $451,972
B89: 83 | C89: $451,972 | D89: =Analysis!$E$14 -> $2,558 | E89: =C89*Analysis!$E$13/12 -> $1,601 | F89: $957 | G89: $451,015
A90: 7 | B90: 84 | C90: $451,015 | D90: =Analysis!$E$14 -> $2,558 | E90: =C90*Analysis!$E$13/12 -> $1,597 | F90: $961 | G90: $450,054
B91: 85 | C91: $450,054 | D91: =Analysis!$E$14 -> $2,558 | E91: =C91*Analysis!$E$13/12 -> $1,594 | F91: $964 | G91: $449,090
B92: 86 | C92: $449,090 | D92: =Analysis!$E$14 -> $2,558 | E92: =C92*Analysis!$E$13/12 -> $1,591 | F92: $968 | G92: $448,123
B93: 87 | C93: $448,123 | D93: =Analysis!$E$14 -> $2,558 | E93: =C93*Analysis!$E$13/12 -> $1,587 | F93: $971 | G93: $447,152
B94: 88 | C94: $447,152 | D94: =Analysis!$E$14 -> $2,558 | E94: =C94*Analysis!$E$13/12 -> $1,584 | F94: $974 | G94: $446,177
B95: 89 | C95: $446,177 | D95: =Analysis!$E$14 -> $2,558 | E95: =C95*Analysis!$E$13/12 -> $1,580 | F95: $978 | G95: $445,199
B96: 90 | C96: $445,199 | D96: =Analysis!$E$14 -> $2,558 | E96: =C96*Analysis!$E$13/12 -> $1,577 | F96: $981 | G96: $444,218
B97: 91 | C97: $444,218 | D97: =Analysis!$E$14 -> $2,558 | E97: =C97*Analysis!$E$13/12 -> $1,573 | F97: $985 | G97: $443,233
B98: 92 | C98: $443,233 | D98: =Analysis!$E$14 -> $2,558 | E98: =C98*Analysis!$E$13/12 -> $1,570 | F98: $988 | G98: $442,245
B99: 93 | C99: $442,245 | D99: =Analysis!$E$14 -> $2,558 | E99: =C99*Analysis!$E$13/12 -> $1,566 | F99: $992 | G99: $441,253
B100: 94 | C100: $441,253 | D100: =Analysis!$E$14 -> $2,558 | E100: =C100*Analysis!$E$13/12 -> $1,563 | F100: $995 | G100: $440,258
B101: 95 | C101: $440,258 | D101: =Analysis!$E$14 -> $2,558 | E101: =C101*Analysis!$E$13/12 -> $1,559 | F101: $999 | G101: $439,259
A102: 8 | B102: 96 | C102: $439,259 | D102: =Analysis!$E$14 -> $2,558 | E102: =C102*Analysis!$E$13/12 -> $1,556 | F102: $1,002 | G102: $438,256
B103: 97 | C103: $438,256 | D103: =Analysis!$E$14 -> $2,558 | E103: =C103*Analysis!$E$13/12 -> $1,552 | F103: $1,006 | G103: $437,251
B104: 98 | C104: $437,251 | D104: =Analysis!$E$14 -> $2,558 | E104: =C104*Analysis!$E$13/12 -> $1,549 | F104: $1,009 | G104: $436,241
B105: 99 | C105: $436,241 | D105: =Analysis!$E$14 -> $2,558 | E105: =C105*Analysis!$E$13/12 -> $1,545 | F105: $1,013 | G105: $435,228
B106: 100 | C106: $435,228 | D106: =Analysis!$E$14 -> $2,558 | E106: =C106*Analysis!$E$13/12 -> $1,541 | F106: $1,017 | G106: $434,211
B107: 101 | C107: $434,211 | D107: =Analysis!$E$14 -> $2,558 | E107: =C107*Analysis!$E$13/12 -> $1,538 | F107: $1,020 | G107: $433,191
B108: 102 | C108: $433,191 | D108: =Analysis!$E$14 -> $2,558 | E108: =C108*Analysis!$E$13/12 -> $1,534 | F108: $1,024 | G108: $432,167
B109: 103 | C109: $432,167 | D109: =Analysis!$E$14 -> $2,558 | E109: =C109*Analysis!$E$13/12 -> $1,531 | F109: $1,027 | G109: $431,140
B110: 104 | C110: $431,140 | D110: =Analysis!$E$14 -> $2,558 | E110: =C110*Analysis!$E$13/12 -> $1,527 | F110: $1,031 | G110: $430,109
B111: 105 | C111: $430,109 | D111: =Analysis!$E$14 -> $2,558 | E111: =C111*Analysis!$E$13/12 -> $1,523 | F111: $1,035 | G111: $429,074
B112: 106 | C112: $429,074 | D112: =Analysis!$E$14 -> $2,558 | E112: =C112*Analysis!$E$13/12 -> $1,520 | F112: $1,038 | G112: $428,035
B113: 107 | C113: $428,035 | D113: =Analysis!$E$14 -> $2,558 | E113: =C113*Analysis!$E$13/12 -> $1,516 | F113: $1,042 | G113: $426,993
A114: 9 | B114: 108 | C114: $426,993 | D114: =Analysis!$E$14 -> $2,558 | E114: =C114*Analysis!$E$13/12 -> $1,512 | F114: $1,046 | G114: $425,947
B115: 109 | C115: $425,947 | D115: =Analysis!$E$14 -> $2,558 | E115: =C115*Analysis!$E$13/12 -> $1,509 | F115: $1,050 | G115: $424,898
B116: 110 | C116: $424,898 | D116: =Analysis!$E$14 -> $2,558 | E116: =C116*Analysis!$E$13/12 -> $1,505 | F116: $1,053 | G116: $423,845
B117: 111 | C117: $423,845 | D117: =Analysis!$E$14 -> $2,558 | E117: =C117*Analysis!$E$13/12 -> $1,501 | F117: $1,057 | G117: $422,788
B118: 112 | C118: $422,788 | D118: =Analysis!$E$14 -> $2,558 | E118: =C118*Analysis!$E$13/12 -> $1,497 | F118: $1,061 | G118: $421,727
B119: 113 | C119: $421,727 | D119: =Analysis!$E$14 -> $2,558 | E119: =C119*Analysis!$E$13/12 -> $1,494 | F119: $1,064 | G119: $420,662
B120: 114 | C120: $420,662 | D120: =Analysis!$E$14 -> $2,558 | E120: =C120*Analysis!$E$13/12 -> $1,490 | F120: $1,068 | G120: $419,594
B121: 115 | C121: $419,594 | D121: =Analysis!$E$14 -> $2,558 | E121: =C121*Analysis!$E$13/12 -> $1,486 | F121: $1,072 | G121: $418,522
B122: 116 | C122: $418,522 | D122: =Analysis!$E$14 -> $2,558 | E122: =C122*Analysis!$E$13/12 -> $1,482 | F122: $1,076 | G122: $417,446
B123: 117 | C123: $417,446 | D123: =Analysis!$E$14 -> $2,558 | E123: =C123*Analysis!$E$13/12 -> $1,478 | F123: $1,080 | G123: $416,367
B124: 118 | C124: $416,367 | D124: =Analysis!$E$14 -> $2,558 | E124: =C124*Analysis!$E$13/12 -> $1,475 | F124: $1,083 | G124: $415,283
B125: 119 | C125: $415,283 | D125: =Analysis!$E$14 -> $2,558 | E125: =C125*Analysis!$E$13/12 -> $1,471 | F125: $1,087 | G125: $414,196
A126: 10 | B126: 120 | C126: $414,196 | D126: =Analysis!$E$14 -> $2,558 | E126: =C126*Analysis!$E$13/12 -> $1,467 | F126: $1,091 | G126: $413,105
B127: 121 | C127: $413,105 | D127: =Analysis!$E$14 -> $2,558 | E127: =C127*Analysis!$E$13/12 -> $1,463 | F127: $1,095 | G127: $412,010
B128: 122 | C128: $412,010 | D128: =Analysis!$E$14 -> $2,558 | E128: =C128*Analysis!$E$13/12 -> $1,459 | F128: $1,099 | G128: $410,911
B129: 123 | C129: $410,911 | D129: =Analysis!$E$14 -> $2,558 | E129: =C129*Analysis!$E$13/12 -> $1,455 | F129: $1,103 | G129: $409,808
B130: 124 | C130: $409,808 | D130: =Analysis!$E$14 -> $2,558 | E130: =C130*Analysis!$E$13/12 -> $1,451 | F130: $1,107 | G130: $408,701
B131: 125 | C131: $408,701 | D131: =Analysis!$E$14 -> $2,558 | E131: =C131*Analysis!$E$13/12 -> $1,447 | F131: $1,111 | G131: $407,591
B132: 126 | C132: $407,591 | D132: =Analysis!$E$14 -> $2,558 | E132: =C132*Analysis!$E$13/12 -> $1,444 | F132: $1,115 | G132: $406,476
B133: 127 | C133: $406,476 | D133: =Analysis!$E$14 -> $2,558 | E133: =C133*Analysis!$E$13/12 -> $1,440 | F133: $1,118 | G133: $405,358
B134: 128 | C134: $405,358 | D134: =Analysis!$E$14 -> $2,558 | E134: =C134*Analysis!$E$13/12 -> $1,436 | F134: $1,122 | G134: $404,235
B135: 129 | C135: $404,235 | D135: =Analysis!$E$14 -> $2,558 | E135: =C135*Analysis!$E$13/12 -> $1,432 | F135: =D135-E135 -> $1,126 | G135: =C135-F135 -> $403,109
B136: 130 | C136: =G135 -> $403,109 | D136: =Analysis!$E$14 -> $2,558 | E136: =C136*Analysis!$E$13/12 -> $1,428 | F136: $1,130 | G136: $401,979
B137: 131 | C137: $401,979 | D137: =Analysis!$E$14 -> $2,558 | E137: =C137*Analysis!$E$13/12 -> $1,424 | F137: $1,134 | G137: $400,844
A138: 11 | B138: 132 | C138: $400,844 | D138: =Analysis!$E$14 -> $2,558 | E138: =C138*Analysis!$E$13/12 -> $1,420 | F138: $1,138 | G138: $399,706
B139: 133 | C139: $399,706 | D139: =Analysis!$E$14 -> $2,558 | E139: =C139*Analysis!$E$13/12 -> $1,416 | F139: $1,142 | G139: $398,563
B140: 134 | C140: $398,563 | D140: =Analysis!$E$14 -> $2,558 | E140: =C140*Analysis!$E$13/12 -> $1,412 | F140: $1,147 | G140: $397,417
B141: 135 | C141: $397,417 | D141: =Analysis!$E$14 -> $2,558 | E141: =C141*Analysis!$E$13/12 -> $1,408 | F141: $1,151 | G141: $396,266
B142: 136 | C142: $396,266 | D142: =Analysis!$E$14 -> $2,558 | E142: =C142*Analysis!$E$13/12 -> $1,403 | F142: $1,155 | G142: $395,112
B143: 137 | C143: $395,112 | D143: =Analysis!$E$14 -> $2,558 | E143: =C143*Analysis!$E$13/12 -> $1,399 | F143: $1,159 | G143: $393,953
B144: 138 | C144: $393,953 | D144: =Analysis!$E$14 -> $2,558 | E144: =C144*Analysis!$E$13/12 -> $1,395 | F144: $1,163 | G144: $392,790
B145: 139 | C145: $392,790 | D145: =Analysis!$E$14 -> $2,558 | E145: =C145*Analysis!$E$13/12 -> $1,391 | F145: $1,167 | G145: $391,623
B146: 140 | C146: $391,623 | D146: =Analysis!$E$14 -> $2,558 | E146: =C146*Analysis!$E$13/12 -> $1,387 | F146: $1,171 | G146: $390,452
B147: 141 | C147: $390,452 | D147: =Analysis!$E$14 -> $2,558 | E147: =C147*Analysis!$E$13/12 -> $1,383 | F147: $1,175 | G147: $389,277
B148: 142 | C148: $389,277 | D148: =Analysis!$E$14 -> $2,558 | E148: =C148*Analysis!$E$13/12 -> $1,379 | F148: $1,179 | G148: $388,097
B149: 143 | C149: $388,097 | D149: =Analysis!$E$14 -> $2,558 | E149: =C149*Analysis!$E$13/12 -> $1,375 | F149: $1,184 | G149: $386,914
A150: 12 | B150: 144 | C150: $386,914 | D150: =Analysis!$E$14 -> $2,558 | E150: =C150*Analysis!$E$13/12 -> $1,370 | F150: $1,188 | G150: $385,726
B151: 145 | C151: $385,726 | D151: =Analysis!$E$14 -> $2,558 | E151: =C151*Analysis!$E$13/12 -> $1,366 | F151: $1,192 | G151: $384,534
B152: 146 | C152: $384,534 | D152: =Analysis!$E$14 -> $2,558 | E152: =C152*Analysis!$E$13/12 -> $1,362 | F152: $1,196 | G152: $383,338
B153: 147 | C153: $383,338 | D153: =Analysis!$E$14 -> $2,558 | E153: =C153*Analysis!$E$13/12 -> $1,358 | F153: $1,200 | G153: $382,137
B154: 148 | C154: $382,137 | D154: =Analysis!$E$14 -> $2,558 | E154: =C154*Analysis!$E$13/12 -> $1,353 | F154: $1,205 | G154: $380,933
B155: 149 | C155: $380,933 | D155: =Analysis!$E$14 -> $2,558 | E155: =C155*Analysis!$E$13/12 -> $1,349 | F155: $1,209 | G155: $379,724
B156: 150 | C156: $379,724 | D156: =Analysis!$E$14 -> $2,558 | E156: =C156*Analysis!$E$13/12 -> $1,345 | F156: $1,213 | G156: $378,510
B157: 151 | C157: $378,510 | D157: =Analysis!$E$14 -> $2,558 | E157: =C157*Analysis!$E$13/12 -> $1,341 | F157: $1,218 | G157: $377,293
B158: 152 | C158: $377,293 | D158: =Analysis!$E$14 -> $2,558 | E158: =C158*Analysis!$E$13/12 -> $1,336 | F158: $1,222 | G158: $376,071
B159: 153 | C159: $376,071 | D159: =Analysis!$E$14 -> $2,558 | E159: =C159*Analysis!$E$13/12 -> $1,332 | F159: $1,226 | G159: $374,845
B160: 154 | C160: $374,845 | D160: =Analysis!$E$14 -> $2,558 | E160: =C160*Analysis!$E$13/12 -> $1,328 | F160: $1,231 | G160: $373,614
B161: 155 | C161: $373,614 | D161: =Analysis!$E$14 -> $2,558 | E161: =C161*Analysis!$E$13/12 -> $1,323 | F161: $1,235 | G161: $372,380
A162: 13 | B162: 156 | C162: $372,380 | D162: =Analysis!$E$14 -> $2,558 | E162: =C162*Analysis!$E$13/12 -> $1,319 | F162: $1,239 | G162: $371,140
B163: 157 | C163: $371,140 | D163: =Analysis!$E$14 -> $2,558 | E163: =C163*Analysis!$E$13/12 -> $1,314 | F163: $1,244 | G163: $369,897
B164: 158 | C164: $369,897 | D164: =Analysis!$E$14 -> $2,558 | E164: =C164*Analysis!$E$13/12 -> $1,310 | F164: $1,248 | G164: $368,649
B165: 159 | C165: $368,649 | D165: =Analysis!$E$14 -> $2,558 | E165: =C165*Analysis!$E$13/12 -> $1,306 | F165: $1,252 | G165: $367,396
B166: 160 | C166: $367,396 | D166: =Analysis!$E$14 -> $2,558 | E166: =C166*Analysis!$E$13/12 -> $1,301 | F166: $1,257 | G166: $366,139
B167: 161 | C167: $366,139 | D167: =Analysis!$E$14 -> $2,558 | E167: =C167*Analysis!$E$13/12 -> $1,297 | F167: $1,261 | G167: $364,878
B168: 162 | C168: $364,878 | D168: =Analysis!$E$14 -> $2,558 | E168: =C168*Analysis!$E$13/12 -> $1,292 | F168: $1,266 | G168: $363,612
B169: 163 | C169: $363,612 | D169: =Analysis!$E$14 -> $2,558 | E169: =C169*Analysis!$E$13/12 -> $1,288 | F169: $1,270 | G169: $362,342
B170: 164 | C170: $362,342 | D170: =Analysis!$E$14 -> $2,558 | E170: =C170*Analysis!$E$13/12 -> $1,283 | F170: $1,275 | G170: $361,067
B171: 165 | C171: $361,067 | D171: =Analysis!$E$14 -> $2,558 | E171: =C171*Analysis!$E$13/12 -> $1,279 | F171: $1,279 | G171: $359,788
B172: 166 | C172: $359,788 | D172: =Analysis!$E$14 -> $2,558 | E172: =C172*Analysis!$E$13/12 -> $1,274 | F172: $1,284 | G172: $358,504
B173: 167 | C173: $358,504 | D173: =Analysis!$E$14 -> $2,558 | E173: =C173*Analysis!$E$13/12 -> $1,270 | F173: $1,288 | G173: $357,216
A174: 14 | B174: 168 | C174: $357,216 | D174: =Analysis!$E$14 -> $2,558 | E174: =C174*Analysis!$E$13/12 -> $1,265 | F174: $1,293 | G174: $355,923
B175: 169 | C175: $355,923 | D175: =Analysis!$E$14 -> $2,558 | E175: =C175*Analysis!$E$13/12 -> $1,261 | F175: $1,298 | G175: $354,625
B176: 170 | C176: $354,625 | D176: =Analysis!$E$14 -> $2,558 | E176: =C176*Analysis!$E$13/12 -> $1,256 | F176: $1,302 | G176: $353,323
B177: 171 | C177: $353,323 | D177: =Analysis!$E$14 -> $2,558 | E177: =C177*Analysis!$E$13/12 -> $1,251 | F177: $1,307 | G177: $352,016
B178: 172 | C178: $352,016 | D178: =Analysis!$E$14 -> $2,558 | E178: =C178*Analysis!$E$13/12 -> $1,247 | F178: $1,311 | G178: $350,705
B179: 173 | C179: $350,705 | D179: =Analysis!$E$14 -> $2,558 | E179: =C179*Analysis!$E$13/12 -> $1,242 | F179: $1,316 | G179: $349,389
B180: 174 | C180: $349,389 | D180: =Analysis!$E$14 -> $2,558 | E180: =C180*Analysis!$E$13/12 -> $1,237 | F180: $1,321 | G180: $348,068
B181: 175 | C181: $348,068 | D181: =Analysis!$E$14 -> $2,558 | E181: =C181*Analysis!$E$13/12 -> $1,233 | F181: $1,325 | G181: $346,743
B182: 176 | C182: $346,743 | D182: =Analysis!$E$14 -> $2,558 | E182: =C182*Analysis!$E$13/12 -> $1,228 | F182: $1,330 | G182: $345,413
B183: 177 | C183: $345,413 | D183: =Analysis!$E$14 -> $2,558 | E183: =C183*Analysis!$E$13/12 -> $1,223 | F183: $1,335 | G183: $344,078
B184: 178 | C184: $344,078 | D184: =Analysis!$E$14 -> $2,558 | E184: =C184*Analysis!$E$13/12 -> $1,219 | F184: $1,339 | G184: $342,739
B185: 179 | C185: $342,739 | D185: =Analysis!$E$14 -> $2,558 | E185: =C185*Analysis!$E$13/12 -> $1,214 | F185: $1,344 | G185: $341,394
A186: 15 | B186: 180 | C186: $341,394 | D186: =Analysis!$E$14 -> $2,558 | E186: =C186*Analysis!$E$13/12 -> $1,209 | F186: $1,349 | G186: $340,045
B187: 181 | C187: $340,045 | D187: =Analysis!$E$14 -> $2,558 | E187: =C187*Analysis!$E$13/12 -> $1,204 | F187: $1,354 | G187: $338,692
B188: 182 | C188: $338,692 | D188: =Analysis!$E$14 -> $2,558 | E188: =C188*Analysis!$E$13/12 -> $1,200 | F188: $1,359 | G188: $337,333
B189: 183 | C189: $337,333 | D189: =Analysis!$E$14 -> $2,558 | E189: =C189*Analysis!$E$13/12 -> $1,195 | F189: $1,363 | G189: $335,970
B190: 184 | C190: $335,970 | D190: =Analysis!$E$14 -> $2,558 | E190: =C190*Analysis!$E$13/12 -> $1,190 | F190: $1,368 | G190: $334,601
B191: 185 | C191: $334,601 | D191: =Analysis!$E$14 -> $2,558 | E191: =C191*Analysis!$E$13/12 -> $1,185 | F191: $1,373 | G191: $333,228
B192: 186 | C192: $333,228 | D192: =Analysis!$E$14 -> $2,558 | E192: =C192*Analysis!$E$13/12 -> $1,180 | F192: $1,378 | G192: $331,850
B193: 187 | C193: $331,850 | D193: =Analysis!$E$14 -> $2,558 | E193: =C193*Analysis!$E$13/12 -> $1,175 | F193: $1,383 | G193: $330,468
B194: 188 | C194: $330,468 | D194: =Analysis!$E$14 -> $2,558 | E194: =C194*Analysis!$E$13/12 -> $1,170 | F194: $1,388 | G194: $329,080
B195: 189 | C195: $329,080 | D195: =Analysis!$E$14 -> $2,558 | E195: =C195*Analysis!$E$13/12 -> $1,165 | F195: $1,393 | G195: $327,687
B196: 190 | C196: $327,687 | D196: =Analysis!$E$14 -> $2,558 | E196: =C196*Analysis!$E$13/12 -> $1,161 | F196: $1,398 | G196: $326,290
B197: 191 | C197: $326,290 | D197: =Analysis!$E$14 -> $2,558 | E197: =C197*Analysis!$E$13/12 -> $1,156 | F197: $1,402 | G197: $324,887
A198: 16 | B198: 192 | C198: $324,887 | D198: =Analysis!$E$14 -> $2,558 | E198: =C198*Analysis!$E$13/12 -> $1,151 | F198: $1,407 | G198: $323,480
B199: 193 | C199: $323,480 | D199: =Analysis!$E$14 -> $2,558 | E199: =C199*Analysis!$E$13/12 -> $1,146 | F199: =D199-E199 -> $1,412 | G199: =C199-F199 -> $322,068
B200: 194 | C200: =G199 -> $322,068 | D200: =Analysis!$E$14 -> $2,558 | E200: =C200*Analysis!$E$13/12 -> $1,141 | F200: $1,417 | G200: $320,650
B201: 195 | C201: $320,650 | D201: =Analysis!$E$14 -> $2,558 | E201: =C201*Analysis!$E$13/12 -> $1,136 | F201: $1,422 | G201: $319,228
... 165 more rows

Sheet Sheet1
